Cogmind - Beta 14 @@@ ROGUE MODE // 2024.11.03 @ 12:45:05 Player: Shimmyarah Result: Self-destructed Performance ------------- Evolutions (2) 1000 Regions Visited (5) 1000 Robots Destroyed (15) 75 Value Destroyed (334) 334 Prototype IDs (1) 20 Alien Tech Used (0) 0 Bonus (290) 290 TOTAL SCORE: 2719 Bonus ------- Aligned with FarCom 300 Friendly Fire -10 Cogmind --------- Core Integrity 431/550 Matter 188/300 Energy 100/100 System Corruption 0% Temperature Cool (9) Movement Treading (160) Location -8/Materials Parts ------- > --- POWER (2) -------- (None) > --- PROPULSION (3) --- Light Treads > --- UTILITY (3) ------ Heat Sink > --- WEAPON (3) ------- Heavy Particle Cannon Improved Grenade Launcher > --- INVENTORY (5) ---- Improved Medium Laser Light Assault Rifle EMP Blaster EMP Trap EMP Trap Peak State ------------ > --- POWER ------------ Light Ion Engine Improved Ion Engine > --- PROPULSION ------- Light Treads Light Treads Improved Hover Unit > --- UTILITY ---------- Heat Sink Sensor Array Improved Signal Interpreter > --- WEAPON ----------- Heavy Particle Cannon Heavy Particle Cannon Improved Grenade Launcher > --- INVENTORY -------- Improved Medium Laser Light Assault Rifle EMP Blaster EMP Trap EMP Trap [Rating: 21] Favorites ----------- Power Light Ion Engine Engine Light Ion Engine Propulsion Light Treads Treads Light Treads Wheel Wheel Hover Unit Improved Hover Unit Utility Sensor Array Device Sensor Array Processor Improved Signal Interpreter Protection Insulated Plating Weapon Heavy Particle Cannon Energy Gun Improved Medium Laser Energy Cannon Heavy Particle Cannon Ballistic Gun Light Assault Rifle Launcher Improved Grenade Launcher Special Melee Weapon Improved Datajack Build | -11 -10 -10 -10 -9 -8 ------- Run | Yrd Mat Min Exi Min Mat Slots Evolved 4 | . . . . . 4 Power 1 | . . . . . 1 Propulsion 1 | . . . . . 1 Utility 1 | . . . . . 1 Weapon 1 | . . . . . 1 Parts Attached 25 | 5 5 . . 1 14 Power 4 | 1 1 . . . 2 Engine 4 | 1 1 . . . 2 Core . | . . . . . . Reactor . | . . . . . . Propulsion 4 | 2 . . . . 2 Treads 2 | 1 . . . . 1 Leg . | . . . . . . Wheel 1 | 1 . . . . . Hover 1 | . . . . . 1 Flight . | . . . . . . Utility 5 | . 1 . . . 4 Device 3 | . 1 . . . 2 Storage . | . . . . . . Processor 1 | . . . . . 1 Hackware . | . . . . . . Protection 1 | . . . . . 1 Artifact . | . . . . . . Weapon 12 | 2 3 . . 1 6 Energy Gun 3 | 1 1 . . . 1 Energy Cannon 3 | . . . . . 3 Ballistic Gun 2 | 1 1 . . . . Ballistic Cannon . | . . . . . . Launcher 3 | . 1 . . 1 1 Special Weapon . | . . . . . . Impact Weapon . | . . . . . . Slashing Weapon . | . . . . . . Piercing Weapon . | . . . . . . Special Melee Weapon 1 | . . . . . 1 Unidentified Prototypes 1 | . 1 . . . . Parts Lost 9 | . . . . 2 7 Power 3 | . . . . 1 2 Propulsion 3 | . . . . 1 2 Utility 2 | . . . . . 2 Weapon 1 | . . . . . 1 Highest Loss Streak 7 | . . . . 2 7 To Critical Strikes . | . . . . . . Average Slot Usage (%) 87 | . 76 85 85 82 91 Engine 14 | . 14 14 14 13 16 Treads 15 | . 14 14 14 14 16 Wheel 7 | . 14 14 14 12 . Hover 3 | . . . . . 7 Device 14 | . 5 14 14 14 16 Protection 3 | . . . . . 6 Energy Gun 8 | . 14 14 14 13 . Energy Cannon 7 | . . . . . 17 Ballistic Gun 8 | . 12 14 14 14 . Launcher 3 | . 1 . . . 8 Peak Build Rating 21 | 5 9 9 9 9 21 Average Rating 12 | 2 8 9 8 7 19 On Entrance 6 | . 5 9 9 8 5 Naked Turns . | . . . . . . Heaviest Build 33 | 6 10 8 8 8 33 Greatest Support 40 | 20 10 10 10 10 40 Greatest Overweight (x) 4 | . . . . 1 4 Average Overweight (x) . | . . . . . 1 Largest Inventory Capacity 5 | 5 5 5 5 5 5 Average Capacity 5 | 5 5 5 5 5 5 Most Carried 5 | 4 5 5 5 5 5 Average Carried 4 | 1 4 5 4 4 4 Final Capacity 5 | 5 5 5 5 5 5 Final Carried 5 | 3 5 5 4 5 5 Class Distribution -------------------- 49% | Mutant 33% | Scavenger-Skirmisher 15% | Skirmisher Dominant Class ---------------- Mutant | -10/Materials Mutant | -10/Mines Mutant | -10/Exiles Skirmisher | -9/Mines Scavenger-Skirmisher | -8/Materials Resources | -11 -10 -10 -10 -9 -8 ----------- Run | Yrd Mat Min Exi Min Mat Matter Collected 478 | 246 64 9 . 11 148 Remotely . | . . . . . . Salvage Created 394 | . 52 79 . . 263 Parts 34 | . 6 6 . . 22 Haulers Intercepted . | . . . . . . Recyclers Shooed 1 | . 1 . . . . Parts Field Recycled . | . . . . . . Retrieved Matter . | . . . . . . Parts Self-Destructed . | . . . . . . Prevented . | . . . . . . Kills | -11 -10 -10 -10 -9 -8 ------- Run | Yrd Mat Min Exi Min Mat Combat Hostiles Destroyed 10 | . 2 1 . . 7 Guns 3 | . 2 1 . . . Cannons 6 | . . . . . 6 AOE 1 | . . . . . 1 Classes Destroyed 6 | . 2 2 . . 2 Builder 1 | . . . . . 1 Tunneler 1 | . . 1 . . . Watcher 3 | . 1 . . . 2 Swarmer 6 | . 2 . . . 4 Grunt 3 | . . 1 . . 2 Sentry 1 | . . . . . 1 Best Kill Streak 4 | . 3 1 . . 4 Combat Bots Only 3 | . 2 1 . . 3 Max Kills in Single Turn 1 | . 1 1 . . 1 Gunslinging . | . . . . . . Exploded 1 | . . . . . 1 Melee . | . . . . . . Uniques/NPCs Destroyed . | . . . . . . Combat | -11 -10 -10 -10 -9 -8 -------- Run | Yrd Mat Min Exi Min Mat Hostile Shots Fired 101 | . 17 . . 3 81 Missed 29 | . 7 . . . 22 Damage Taken 1207 | . 91 . . 245 871 Core 253 | . 43 . . 91 119 Absorbed by Shields . | . . . . . . Core Remaining (%) 73 | 100 . . . 46 . Volleys Fired 50 | . 15 4 . 3 28 Largest 3 | . 2 2 . 2 3 Hottest 186 | . 76 76 . 76 186 Shots Fired 88 | . 23 8 . 6 51 Gun 37 | . 23 8 . 6 . Cannon 46 | . . . . . 46 Launcher 5 | . . . . . 5 Special . | . . . . . . Kinetic 22 | . 15 4 . 3 . Thermal 61 | . 8 4 . 3 46 Explosive 5 | . . . . . 5 Electromagnetic . | . . . . . . Robot Hit Streak 6 | . 6 3 . 1 3 Robot Miss Streak 5 | . 1 4 . 1 5 Penetration Max . | . . . . . . Secondary Targets . | . . . . . . Shots Hit Robots 38 | . 13 3 . 3 19 Core Hits 25 | . 5 3 . 2 15 Critical Kills . | . . . . . . Critical Parts Destroyed . | . . . . . . Critical Strikes . | . . . . . . Melee Attacks . | . . . . . . Impact . | . . . . . . Slashing . | . . . . . . Piercing . | . . . . . . Sneak Attacks . | . . . . . . Combat Hostiles . | . . . . . . Follow-up Attacks . | . . . . . . Damage Inflicted 1012 | . 133 67 . 23 789 Guns 223 | . 133 67 . 23 . Cannons 500 | . . . . . 500 Explosions 289 | . . . . . 289 Melee . | . . . . . . Ramming . | . . . . . . Kinetic 105 | . 66 16 . 23 . Thermal 618 | . 67 51 . . 500 Explosive 289 | . . . . . 289 Electromagnetic . | . . . . . . Impact . | . . . . . . Slashing . | . . . . . . Piercing . | . . . . . . Highest Corruption . | . . . . . . Average Corruption . | . . . . . . Corruption Purged . | . . . . . . Corruption Blocked . | . . . . . . Overload Shots . | . . . . . . Overflow Damage 21 | . . . . . 21 Projectiles . | . . . . . . Explosions 21 | . . . . . 21 Melee . | . . . . . . Knockbacks . | . . . . . . Impact . | . . . . . . Kinetic . | . . . . . . Secondary . | . . . . . . Self-Inflicted Damage 112 | . . . . . 112 Shots 3 | . . . . . 3 Rammed . | . . . . . . Targets Rammed . | . . . . . . Kicked . | . . . . . . Crushed . | . . . . . . Highest Temperature 477 | . 88 52 . 37 477 Average Temperature 121 | . 39 28 . 23 155 Received Heat Transfer 378 | . . . . . 378 Effects 6 | . . . . . 6 Shutdowns 4 | . . . . . 4 Matter Decay 2 | . . . . . 2 Siege Activations . | . . . . . . Robots Corrupted . | . . . . . . Combat Hostiles . | . . . . . . Parts Fried . | . . . . . . Impact Corruptions . | . . . . . . Robots Melted . | . . . . . . Combat Hostiles . | . . . . . . Parts Melted . | . . . . . . Heat Transferred 999 | . 148 111 . . 740 Parts Sabotaged . | . . . . . . Parts Stolen . | . . . . . . Parts Stripped . | . . . . . . Power Chain Reactions . | . . . . . . Alert | -11 -10 -10 -10 -9 -8 ------- Run | Yrd Mat Min Exi Min Mat Peak Influence 111 | . 72 62 . . 111 Initial 27 | . . 27 . . . Average 29 | . 36 38 . . 35 Maximum Alert Level . | . . . . . . Low Security (%) 100 | 100 100 100 . 100 100 Level 1 . | . . . . . . Level 2 . | . . . . . . Level 3 . | . . . . . . Level 4 . | . . . . . . Level 5 . | . . . . . . High Security . | . . . . . . Max Security . | . . . . . . Squads Dispatched 2 | . 1 . . . 1 Investigation 1 | . 1 . . . . Extermination . | . . . . . . Reinforcement 1 | . . . . . 1 Assault . | . . . . . . Garrison . | . . . . . . Intercept . | . . . . . . Searches Triggered . | . . . . . . Construction Impeded 1 | . . . . . 1 Haulers Reinforced . | . . . . . . Active Scanning Responses . | . . . . . . Cargo Convoy Interrupts . | . . . . . . Stealth | -11 -10 -10 -10 -9 -8 --------- Run | Yrd Mat Min Exi Min Mat Distress Signals 1 | . . . . . 1 Communications Jammed . | . . . . . . Distress Signals . | . . . . . . Times Spotted 30 | . 6 4 . 2 18 Peak Tracking Total 6 | . 4 3 . 2 6 Tactical Retreats . | . . . . . . Traps | -11 -10 -10 -10 -9 -8 ------- Run | Yrd Mat Min Exi Min Mat Traps Triggered . | . . . . . . Indirectly . | . . . . . . Trap Hack Attempts . | . . . . . . Triggered . | . . . . . . Disarmed . | . . . . . . Reprogrammed . | . . . . . . Reused . | . . . . . . Traps Extracted . | . . . . . . Installed . | . . . . . . Triggered . | . . . . . . Most Traps Carried 2 | . . . . 2 2 Machines | -11 -10 -10 -10 -9 -8 ---------- Run | Yrd Mat Min Exi Min Mat Machines Disabled 2 | . 1 . . . 1 Max in Single Turn 1 | . 1 . . . 1 Machines Repaired . | . . . . . . Machines Dismantled . | . . . . . . Machines Sabotaged . | . . . . . . Overloaded Fab Kills . | . . . . . . Hacking | -11 -10 -10 -10 -9 -8 --------- Run | Yrd Mat Min Exi Min Mat Machines Accessed 4 | . . . 4 . . Terminals . | . . . . . . Fabricators . | . . . . . . Repair Stations . | . . . . . . Recycling Units . | . . . . . . Scanalyzers . | . . . . . . Garrison Access . | . . . . . . Total Hacks 49 | . . . 49 . . Successful 49 | . . . 49 . . Failed . | . . . . . . Catastrophic . | . . . . . . Database Lockouts . | . . . . . . Manual . | . . . . . . Terminals . | . . . . . . Fabricators . | . . . . . . Repair Stations . | . . . . . . Recycling Units . | . . . . . . Scanalyzers . | . . . . . . Garrison Access . | . . . . . . Terminal Hacks 49 | . . . 49 . . Record 49 | . . . 49 . . Fabricator Hacks . | . . . . . . Repair Station Hacks . | . . . . . . Recycling Unit Hacks . | . . . . . . Scanalyzer . | . . . . . . Garrison Access Hacks . | . . . . . . Unauthorized Hacks . | . . . . . . Terminals . | . . . . . . Fabricators . | . . . . . . Repair Stations . | . . . . . . Recycling Units . | . . . . . . Scanalyzers . | . . . . . . Garrison Access . | . . . . . . Data Cores Recovered . | . . . . . . Used . | . . . . . . Hacking Detections . | . . . . . . Full Trace Events . | . . . . . . Feedback Events . | . . . . . . Feedback Blocked . | . . . . . . Robot Schematics Acquired . | . . . . . . Robots Built . | . . . . . . Authchips . | . . . . . . Time . | . . . . . . Total Robot Build Rating . | . . . . . . Part Schematics Acquired . | . . . . . . Parts Built . | . . . . . . Authchips . | . . . . . . Time . | . . . . . . Total Part Build Rating . | . . . . . . Parts Repaired . | . . . . . . Time . | . . . . . . Parts Recycled . | . . . . . . Recycled Matter . | . . . . . . Retrieved Matter . | . . . . . . Retrieved Components . | . . . . . . Parts Scanalyzed . | . . . . . . Part Schematics Acquired . | . . . . . . Parts Damaged . | . . . . . . Bothacking | -11 -10 -10 -10 -9 -8 ------------ Run | Yrd Mat Min Exi Min Mat Used RIF Installer . | . . . . . . Robots Hacked . | . . . . . . Non-combat . | . . . . . . Combat . | . . . . . . Robot Hacks Applied . | . . . . . . Relay Couplers Released . | . . . . . . Fabnet Peak Effective % . | . . . . . . Robots Rewired . | . . . . . . Allies Hacked . | . . . . . . Hacks Repelled . | . . . . . . Allies | -11 -10 -10 -10 -9 -8 -------- Run | Yrd Mat Min Exi Min Mat Total Allies 4 | . . 1 . 3 . Largest Group 3 | . . 1 1 3 . Highest-Rated Group 40 | . . 31 31 40 . Highest-Rated Ally 31 | . . 31 31 16 . Total Orders . | . . . . . . Ally Attacks 3 | . . . . 3 . Total Damage 39 | . . . . 39 . Kills . | . . . . . . Allies Corrupted . | . . . . . . Allies Melted . | . . . . . . Intel | -11 -10 -10 -10 -9 -8 ------- Run | Yrd Mat Min Exi Min Mat Robot Analysis Total . | . . . . . . Derelict Logs Recovered 1 | . . 1 . . . Drone Launches . | . . . . . . Drone Recoveries . | . . . . . . Exploration | -11 -10 -10 -10 -9 -8 ------------- Run | Yrd Mat Min Exi Min Mat Turns Passed 3598 | 66 124 105 1466 291 1546 Spaces Moved 3086 | 81 96 117 1820 344 628 Core 100 | 41 . . . 19 40 Treads 589 | 1 . . . . 588 Legs . | . . . . . . Wheels 2397 | 39 96 117 1820 325 . Hover . | . . . . . . Flight . | . . . . . . Fastest Speed 50 | 50 80 80 80 80 160 Average Speed 110 | 65 80 80 80 81 229 Slowest Speed 250 | 160 80 80 80 100 250 Overloaded Moves . | . . . . . . Propulsion Burnouts . | . . . . . . Robots Hopped . | . . . . . . Cave-ins Triggered . | . . . . . . Exploration Rate (%) 37 | 4 16 34 94 55 24 Regions Visited 5 Branch Regions 3 Pre-discovered Areas 2 | . . . 2 . . Known Exits Taken . | . . . . . . Unknown Exits Taken 5 | 1 1 1 1 1 . Scrap Searched 3 | . . . . 3 . Spaces Dug . | . . . . . . Terrain Destroyed 76 | . . . . . 76 Melee . | . . . . . . Projectile 24 | . . . . . 24 AOE 52 | . . . . . 52 Terrain Rammed . | . . . . . . Walls Destroyed . | . . . . . . Machines Disabled . | . . . . . . Actions | -11 -10 -10 -10 -9 -8 --------- Run | Yrd Mat Min Exi Min Mat Total 3193 | 93 122 120 1830 350 678 Wait . | . . . . . . Move 3081 | 80 95 116 1819 343 628 Hop . | . . . . . . Pick Up 19 | 8 4 . 1 2 4 Fast Attach 8 | . 1 . . . 7 Attach 8 | 5 . . . . 3 Detach . | . . . . . . Swap 9 | . 4 . . 1 4 Drop 10 | . 3 . 2 1 4 Fire 50 | . 15 4 . 3 28 Melee . | . . . . . . Ram . | . . . . . . Kick . | . . . . . . Crush . | . . . . . . Escape Stasis . | . . . . . . Rewire 8 | . . . 8 . . Trap . | . . . . . . Miscellaneous . | . . . . . . Route ------- -11/Scrapyard -10/Materials -10/Mines -10/Exiles (discovered 2 exits: [*Min x2]) -9/Mines (discovered 2 exits: *Mat x2) -8/Materials History --------- Turn | Location | Event 5 | -11/Scrapyard | Discovered new exit (range 13) 67 | -11/Scrapyard | Entered Materials 115 | -10/Materials | Discovered new exit (range 14) 173 | -10/Materials | Met 8R-AWN 191 | -10/Materials | Entered Mines 192 | -10/Mines | Followed 8R-AWN into the Mines 268 | -10/Mines | Learned Materials stockpile data 278 | -10/Mines | Escorted by a lone wolf Derelict 291 | -10/Mines | Discovered new exit (range 5) 296 | -10/Mines | Entered Exiles 296 | -10/Exiles | Accompanied by 1 ally 298 | -10/Exiles | Learned location of Storage (-8) 317 | -10/Exiles | Build established: Mutant 339 | -10/Exiles | Welcomed by 8R-AWN 371 | -10/Exiles | Met EX-HEX 432 | -10/Exiles | Met EX-DEC 496 | -10/Exiles | Visited The Gauntlet 690 | -10/Exiles | Discovered new exit (range 15) 744 | -10/Exiles | Learned location of Zion (-7) 775 | -10/Exiles | Met EX-BIN 926 | -10/Exiles | Aligned with FarCom system 927 | -10/Exiles | Given EX-Vault access code 1057 | -10/Exiles | Learned about 8R-AWN's background 1090 | -10/Exiles | Discovered new exit (range 15) 1762 | -10/Exiles | Entered Mines 1817 | -9/Mines | Assisted by bots powering up and referring to "LRC-V3" 1840 | -9/Mines | Found a hidden stash of uninstalled traps 1893 | -9/Mines | Discovered new exit (range 15) 1975 | -9/Mines | Discovered new exit (range 8) 2019 | -9/Mines | Assembled infested the area 2024 | -9/Mines | Assisted by a Guerilla fighting off Assembled 2033 | -9/Mines | Core integrity fell below 50% 2053 | -9/Mines | Entered Materials 2053 | -8/Materials | Evolved 4 slots: Power x1, Propulsion x1, Utility x1, Weapon x1 2059 | -8/Materials | Lost 4 allies 2075 | -8/Materials | Build established: Skirmisher 2629 | -8/Materials | Build established: Scavenger-Skirmisher 3599 | -8/Materials | Self-destructed Last Messages --------------- 03575_ U-05 Engineer lays Concrete. 03575_ U-05 Engineer builds a Wall. 03576_ G-47 Trooper destroyed. 03577_ U-05 Engineer lays Concrete. 03579_ U-05 Engineer sends out distress signal. 03581_ U-05 Engineer lays Concrete. 03583_ U-05 Engineer builds a Wall. 03585_ The unstable cave ceiling collapses. 03586_ M-13 Machinist repairs U-05 Engineer. 03588_ U-05 Engineer lays Concrete. 03588_ U-05 Engineer builds a Wall. 03589_ U-05 Engineer lays Concrete. 03589_ U-05 Engineer builds a Wall. 03590_ Lgt. Treads destroyed. 03593_ U-05 Engineer builds a Wall. 03594_ U-05 Engineer lays Concrete. 03595_ Hvy. Particle Cannon destroyed. 03597_ Lgt. Ion Engine destroyed. 03597_ U-05 Engineer lays Concrete. 03598_ U-05 Engineer builds a Wall. Map ----- +----------------------------------------------------+ | | | | | | | | | | | | | | | | | | | | | | | | | | | | | | | | | | | ?????????????????????????#######?????????????????? | | ?????????????????????????!!! #?????????????????? | | ###################?????#!!! !#?????????????????? | | /! ! # "T" ?????#!! #??######?????????? | | # #????# ! #?!!==!!#?????????? | | # ! #?#### # !!==!!# ??????? | | * # ### ## # " ?????? | | [ # ! # # # ##????????? | | # """ k @ g [ "????? | | # """ ! # !%u *gg u% #????? | | # """ # ##u#;=m;;###+####+#??????? | | #####+############### ## ;## ?????????? | | ### !#???????????# # % "##???""" #????????? | | ############# # "#??????"??????????? | | T g ## "#?????????????????? | | + ! """#?????????????????? | | ### #############/### #?????????????????? | | ??## ##???????????"%"?########?????????????????? | | ???# #????????????"" ??????????????????????????? | | ???# #????????????" !??????????????????????????? | | ???# #????????????" ??????????????????????????? | | ???# #???????????? ??????????????????????????? | | ???# #??????????g?###g?????????????????????????? | | ???# #?????????????????????????????????????????? | | ???# #?????????????????????????????????????????? | | ???# #?????????????????????????????????????????? | | ???# #?????????????????????????????????????????? | | ???# +?????????????????????????????????????????? | | ???# ??????????????????????????????????????????? | | ???# ??????????????????????????????????????????? | | ?????????????????????????????????????????????????? | | ?????????????????????????????????????????????????? | | ?????????????????????????????????????????????????? | +----------------------------------------------------+ Best States ------------- Heat Dissipation 51 Energy Generation 17 Energy Capacity 290 Matter Stores 300 Matter Capacity 300 Sight Range 16 Robot Scan Range 14 Terrain Scan Density 10 Armor Coverage 150 Resistance: EM 15 Evasion (%) 50 Recoil Reduction 2 Item Schematics ----------------- None Robot Schematics ------------------ None Fabricated ------------ Nothing Alien Tech Used ----------------- None Achievements -------------- Let's See Who's Tougher Librarian Tourist Challenges ------------ None Game ------ Seed RocketDroneReactor Manual? 0 Play Time 00:50:03 Cumulative 2.8 hours Start 2024.11.03 @ 11:50:45 End 2024.11.03 @ 12:45:05 Sessions 1 Manual Loads 0 Difficulty Rogue Special Mode None Game No. 4 Rogue 4 Adventurer 0 Explorer 0 Win Type - Total 0 Types 0/0/0/0/0/0/0/0/0 Lore% 6 Gallery% 5 Achievement% 5 Wizard Run 0 Options --------- Layout 1 ASCII 0 Keyboard 0 Movement Arrows Keybinds 0 Fullscreen 1 Font 24/Smallcaps Map View 25x20 Zoom Use 49% Tactical HUD 1 Map Filters NONE Filters NONE Steam 1 RUN: 4149ca13-262b-4e60-a056-bc998ec99dc1